fUSD/lending_fUSD_20260702
["ID","MTS","AMOUNT","RATE_DAILY","PERIOD"]
[426862654,1782965450000,-151.0,0.00032877,7]
[426862658,1782965450000,-151.0,0.00032877,7]
[426862628,1782965450000,-151.0,0.00032877,7]
[426862629,1782965450000,-528.429504,0.00032877,7]
[426862630,1782965450000,-214.061642,0.00032877,7]
[426862631,1782965450000,-214.061642,0.00032877,7]
[426862633,1782965450000,-151.0,0.00032877,7]
[426862634,1782965450000,-214.061642,0.00032877,7]
[426862635,1782965450000,-151.0,0.00032877,7]
[426862637,1782965450000,-214.061642,0.00032877,7]
[426862643,1782965450000,-468.89481,0.00032877,7]
[426862648,1782965450000,-468.89481,0.00032877,7]
[426862638,1782965450000,-528.429504,0.00032877,7]
[426862639,1782965450000,-151.0,0.00032877,7]
[426862625,1782965450000,-214.061642,0.00032877,7]
[426862640,1782965450000,-528.429504,0.00032877,7]
[426862655,1782965450000,-468.89481,0.00032877,7]
[426862641,1782965450000,-151.0,0.00032877,7]
[426862649,1782965450000,-327.683781,0.00032877,7]
[426862653,1782965450000,-152.776015,0.00032877,7]
[426862651,1782965450000,-468.89481,0.00032877,7]
[426862660,1782965450000,-468.89481,0.00032877,7]
[426862652,1782965450000,-327.683781,0.00032877,7]
[426862647,1782965450000,-151.0,0.00032877,7]
[426862642,1782965450000,-528.429504,0.00032877,7]
[426862644,1782965450000,-468.89481,0.00032877,7]
[426862646,1782965450000,-327.683781,0.00032877,7]
[426862645,1782965450000,-468.89481,0.00032877,7]
[426862650,1782965450000,-151.0,0.00032877,7]
[426862711,1782965451000,-535.492031,0.00032877,7]
[426862717,1782965451000,-345.29801,0.00032877,7]
[426862708,1782965451000,-1030.369863,0.00032877,7]
[426862710,1782965451000,-345.29801,0.00032877,7]
[426862712,1782965451000,-535.492031,0.00032877,7]
[426862715,1782965451000,-277.53183561,0.00032877,7]
[426862716,1782965451000,-277.72417689,0.00032877,7]
[426862714,1782965451000,-475.1138505,0.00032877,7]
[426862720,1782965451000,-240.31712215,0.00032877,7]
[426862719,1782965451000,-345.29801,0.00032877,7]
[426862729,1782965451000,-326.082362,0.00032877,7]
[426862721,1782965451000,-295.17490885,0.00032877,7]
[426862709,1782965451000,-1030.369863,0.00032877,7]
[426862722,1782965451000,-136.71009115,0.00032877,7]
[426862718,1782965451000,-535.492031,0.00032877,7]
[426862723,1782965451000,-16.55198585,0.00032877,7]
[426862724,1782965451000,-153.262077,0.00032877,7]
[426862713,1782965451000,-1030.369863,0.00032877,7]
[426862706,1782965451000,-535.492031,0.00032877,7]
[426862701,1782965451000,-136.13154688,0.00032877,7]
[426862704,1782965451000,-315.58251,0.00032172,7]
[426862725,1782965451000,-151.0,0.00032877,7]
[426862687,1782965451000,-345.29801,0.00032877,7]
[426862690,1782965451000,-535.492031,0.00032877,7]
[426862692,1782965451000,-1152.883582,0.00032877,7]
[426862693,1782965451000,-1030.369863,0.00032877,7]
[426862689,1782965451000,-407.615954,0.00032877,7]
[426862686,1782965451000,-407.615954,0.00032877,7]
[426862695,1782965451000,-345.29801,0.00032877,7]
[426862707,1782965451000,-345.29801,0.00032877,7]
[426862691,1782965451000,-535.492031,0.00032877,7]
[426862697,1782965451000,-1030.369863,0.00032877,7]
[426862696,1782965451000,-407.615954,0.00032877,7]
[426862699,1782965451000,-60.03105685,0.00032877,7]
[426862700,1782965451000,-407.615954,0.00032877,7]
[426862698,1782965451000,-285.26695315,0.00032877,7]
[426862703,1782965451000,-772.0,0.0003165,30]
[426862702,1782965451000,-315.58251,0.00031,7]
[426862705,1782965451000,-399.36048412,0.00032877,7]
[426862694,1782965451000,-1152.883582,0.00032877,7]
[426862688,1782965451000,-1030.369863,0.00032877,7]
[426862727,1782965451000,-153.262077,0.00032877,7]
[426862726,1782965451000,-151.0,0.00032877,7]
[426862755,1782965451000,-151.0,0.00032877,7]
[426862756,1782965451000,-151.0,0.00032877,7]
[426862757,1782965451000,-171.733464,0.00032877,7]
[426862753,1782965451000,-171.733464,0.00032877,7]
[426862754,1782965451000,-171.733464,0.00032877,7]
[426862758,1782965451000,-171.733464,0.00032877,7]
[426862759,1782965451000,-245.275962,0.00032877,7]
[426862760,1782965451000,-171.733464,0.00032877,7]
[426862752,1782965451000,-151.0,0.00032877,7]
[426862761,1782965451000,-171.733464,0.00032877,7]
[426862762,1782965451000,-151.0,0.00032877,7]
[426862769,1782965451000,-1046.63249549,0.00032877,7]
[426862764,1782965451000,-151.0,0.00032877,7]
[426862767,1782965451000,-217.937147,0.00032877,7]
[426862766,1782965451000,-151.0,0.00032877,7]
[426862768,1782965451000,-1308.718001,0.00032877,7]
[426862770,1782965451000,-262.08550551,0.00032877,7]
[426862728,1782965451000,-153.262077,0.00032877,7]
[426862763,1782965451000,-171.733464,0.00032877,7]
[426862751,1782965451000,-151.0,0.00032877,7]
[426862765,1782965451000,-171.733464,0.00032877,7]
[426862750,1782965451000,-151.0,0.00032877,7]
[426862730,1782965451000,-76.53246644,0.00032877,7]
[426862749,1782965451000,-151.0,0.00032877,7]
[426862733,1782965451000,-99.45010444,0.00032877,7]
[426862732,1782965451000,-326.082362,0.00032877,7]
[426862734,1782965451000,-51.54989556,0.00032877,7]
[426862736,1782965451000,-326.082362,0.00032877,7]
[426862735,1782965451000,-153.262077,0.00032877,7]
[426862738,1782965451000,-326.082362,0.00032877,7]
[426862737,1782965451000,-153.262077,0.00032877,7]
[426862731,1782965451000,-74.46753356,0.00032877,7]
[426862742,1782965451000,-151.0,0.00032877,7]
[426862743,1782965451000,-153.262077,0.00032877,7]
[426862741,1782965451000,-151.0,0.00032877,7]
[426862744,1782965451000,-153.262077,0.00032877,7]
[426862740,1782965451000,-151.0,0.00032877,7]
[426862745,1782965451000,-326.082362,0.00032877,7]
[426862747,1782965451000,-326.082362,0.00032877,7]
[426862748,1782965451000,-326.082362,0.00032877,7]
[426862739,1782965451000,-151.0,0.00032877,7]
[426862746,1782965451000,-326.082362,0.00032877,7]
[426862811,1782965452000,-151.0,0.00032877,7]
[426862810,1782965452000,-351.786856,0.00032877,7]
[426862809,1782965452000,-151.0,0.00032877,7]
[426862813,1782965452000,-351.786856,0.00032877,7]
[426862806,1782965452000,-351.786856,0.00032877,7]
[426862805,1782965452000,-351.786856,0.00032877,7]
[426862804,1782965452000,-151.0,0.00032877,7]
[426862801,1782965452000,-418.196574,0.00032877,7]
[426862803,1782965452000,-151.0,0.00032877,7]
[426862812,1782965452000,-286.749455,0.00032877,7]
[426862798,1782965452000,-418.196574,0.00032877,7]
[426862807,1782965452000,-418.196574,0.00032877,7]
[426862808,1782965452000,-418.196574,0.00032877,7]
[426862821,1782965452000,-151.0,0.00032877,7]
[426862814,1782965452000,-151.0,0.00032877,7]
[426862816,1782965452000,-151.0,0.00032877,7]
[426862817,1782965452000,-351.786856,0.00032877,7]
[426862818,1782965452000,-151.0,0.00032877,7]
[426862819,1782965452000,-655.758745,0.00032877,7]
[426862822,1782965452000,-151.0,0.00032877,7]
[426862820,1782965452000,-351.786856,0.00032877,7]
[426862823,1782965452000,-655.758745,0.00032877,7]
[426862824,1782965452000,-351.786856,0.00032877,7]
[426862826,1782965452000,-655.758745,0.00032877,7]
[426862836,1782965452000,-378.293616,0.00032877,7]
[426862802,1782965452000,-418.196574,0.00032877,7]
[426862815,1782965452000,-151.0,0.00032877,7]
[426862800,1782965452000,-151.0,0.00032877,7]
[426862777,1782965452000,-1308.718001,0.00032877,7]
[426862797,1782965452000,-418.196574,0.00032877,7]
[426862825,1782965452000,-158.0768,0.00032877,7]
[426862781,1782965452000,-3758.472907,0.00032877,7]
[426862771,1782965452000,-444.316818,0.00032877,7]
[426862782,1782965452000,-1308.718001,0.00032877,7]
[426862775,1782965452000,-444.316818,0.00032877,7]
[426862776,1782965452000,-444.316818,0.00032877,7]
[426862774,1782965452000,-1308.718001,0.00032877,7]
[426862772,1782965452000,-444.316818,0.00032877,7]
[426862773,1782965452000,-1308.718001,0.00032877,7]
[426862779,1782965452000,-444.316818,0.00032877,7]
[426862780,1782965452000,-444.316818,0.00032877,7]
[426862778,1782965452000,-1308.718001,0.00032877,7]
[426862799,1782965452000,-151.0,0.00032877,7]
[426862784,1782965452000,-1308.718001,0.00032877,7]
[426862785,1782965452000,-444.316818,0.00032877,7]
[426862788,1782965452000,-3758.472907,0.00032877,7]
[426862789,1782965452000,-3758.472907,0.00032877,7]
[426862794,1782965452000,-151.0,0.00032877,7]
[426862791,1782965452000,-418.196574,0.00032877,7]
[426862790,1782965452000,-3758.472907,0.00032877,7]
[426862787,1782965452000,-3758.472907,0.00032877,7]
[426862792,1782965452000,-418.196574,0.00032877,7]
[426862786,1782965452000,-444.316818,0.00032877,7]
[426862793,1782965452000,-3758.472907,0.00032877,7]
[426862796,1782965452000,-151.0,0.00032877,7]
[426862795,1782965452000,-3758.472907,0.00032877,7]
[426862783,1782965452000,-3758.472907,0.00032877,7]
[426862827,1782965452000,-351.786856,0.00032877,7]
[426862842,1782965452000,-378.293616,0.00032877,7]
[426862834,1782965452000,-378.293616,0.00032877,7]
[426862856,1782965452000,-1258.124227,0.00032877,7]
[426862863,1782965452000,-1258.124227,0.00032877,7]
[426862873,1782965452000,-1258.124227,0.00032877,7]
[426862862,1782965452000,-183.613012,0.00032877,7]
[426862874,1782965452000,-183.613012,0.00032877,7]
[426862866,1782965452000,-1258.124227,0.00032877,7]
[426862867,1782965452000,-537.626142,0.00032877,7]
[426862865,1782965452000,-537.626142,0.00032877,7]
[426862864,1782965452000,-183.613012,0.00032877,7]
[426862869,1782965452000,-183.613012,0.00032877,7]
[426862868,1782965452000,-183.613012,0.00032877,7]
[426862870,1782965452000,-537.626142,0.00032877,7]
[426862857,1782965452000,-183.613012,0.00032877,7]
[426862871,1782965452000,-1258.124227,0.00032877,7]
[426862875,1782965452000,-183.613012,0.00032877,7]
[426862884,1782965452000,-161.87,0.00032877,7]
[426862877,1782965452000,-1258.124227,0.00032877,7]
[426862879,1782965452000,-739.182635,0.00032877,7]
[426862887,1782965452000,-636.517018,0.00032877,7]
[426862886,1782965452000,-161.87,0.00032877,7]
[426862876,1782965452000,-1258.124227,0.00032877,7]
[426862880,1782965452000,-739.182635,0.00032877,7]
[426862882,1782965452000,-739.182635,0.00032877,7]
[426862878,1782965452000,-739.182635,0.00032877,7]
[426862883,1782965452000,-151.0,0.00032877,7]
[426862830,1782965452000,-655.758745,0.00032877,7]
[426862872,1782965452000,-537.626142,0.00032877,7]
[426862853,1782965452000,-537.626142,0.00032877,7]
[426862885,1782965452000,-636.517018,0.00032877,7]
[426862852,1782965452000,-151.0,0.00032877,7]
[426862854,1782965452000,-151.0,0.00032877,7]
[426862833,1782965452000,-378.293616,0.00032877,7]
[426862831,1782965452000,-655.758745,0.00032877,7]
[426862828,1782965452000,-655.758745,0.00032877,7]
[426862829,1782965452000,-655.758745,0.00032877,7]
[426862835,1782965452000,-378.293616,0.00032877,7]
[426862837,1782965452000,-378.293616,0.00032877,7]
[426862839,1782965452000,-151.0,0.00032877,7]
[426862848,1782965452000,-151.0,0.00032877,7]
[426862844,1782965452000,-151.0,0.00032877,7]
[426862838,1782965452000,-378.293616,0.00032877,7]
[426862840,1782965452000,-151.0,0.00032877,7]
[426862841,1782965452000,-378.293616,0.00032877,7]
[426862832,1782965452000,-655.758745,0.00032877,7]
[426862881,1782965452000,-151.0,0.00032877,7]
[426862855,1782965452000,-183.613012,0.00032877,7]
[426862847,1782965452000,-151.0,0.00032877,7]
[426862851,1782965452000,-537.626142,0.00032877,7]
[426862859,1782965452000,-1258.124227,0.00032877,7]
[426862861,1782965452000,-537.626142,0.00032877,7]
[426862858,1782965452000,-537.626142,0.00032877,7]
[426862849,1782965452000,-151.0,0.00032877,7]
[426862860,1782965452000,-151.0,0.00032877,7]
[426862850,1782965452000,-151.0,0.00032877,7]
[426862846,1782965452000,-151.0,0.00032877,7]
[426862845,1782965452000,-151.0,0.00032877,7]
[426862843,1782965452000,-151.0,0.00032877,7]
[426862914,1782965453000,-151.0,0.00032877,7]
[426862908,1782965453000,-355.135577,0.00032877,7]
[426862923,1782965453000,-197.03116,0.00032877,7]
[426862909,1782965453000,-186.076215,0.00032877,7]
[426862913,1782965453000,-636.517018,0.00032877,7]
[426862912,1782965453000,-151.0,0.00032877,7]
[426862910,1782965453000,-355.135577,0.00032877,7]
[426862916,1782965453000,-197.03116,0.00032877,7]
[426862919,1782965453000,-197.03116,0.00032877,7]
[426862915,1782965453000,-636.517018,0.00032877,7]
[426862918,1782965453000,-355.135577,0.00032877,7]
[426862922,1782965453000,-151.0,0.00032877,7]
[426862920,1782965453000,-355.135577,0.00032877,7]
[426862921,1782965453000,-151.0,0.00032877,7]
[426862901,1782965453000,-151.0,0.00032877,7]
[426862924,1782965453000,-197.03116,0.00032877,7]
[426862917,1782965453000,-161.87,0.00032877,7]
[426862906,1782965453000,-161.87,0.00032877,7]
[426862893,1782965453000,-151.0,0.00032877,7]
[426862904,1782965453000,-636.517018,0.00032877,7]
[426862926,1782965453000,-3181.687016,0.00032877,7]
[426862899,1782965453000,-739.182635,0.00032877,7]
[426862888,1782965453000,-739.182635,0.00032877,7]
[426862890,1782965453000,-151.0,0.00032877,7]
[426862891,1782965453000,-739.182635,0.00032877,7]
[426862892,1782965453000,-355.135577,0.00032877,7]
[426862896,1782965453000,-636.517018,0.00032877,7]
[426862911,1782965453000,-161.87,0.00032877,7]
[426862894,1782965453000,-161.87,0.00032877,7]
[426862897,1782965453000,-161.87,0.00032877,7]
[426862898,1782965453000,-355.135577,0.00032877,7]
[426862900,1782965453000,-355.135577,0.00032877,7]
[426862903,1782965453000,-151.0,0.00032877,7]
[426862902,1782965453000,-739.182635,0.00032877,7]
[426862905,1782965453000,-161.87,0.00032877,7]
[426862907,1782965453000,-636.517018,0.00032877,7]
[426862895,1782965453000,-636.517018,0.00032877,7]
[426862931,1782965453000,-197.03116,0.00032877,7]
[426862889,1782965453000,-355.135577,0.00032877,7]
[426862930,1782965453000,-3181.687016,0.00032877,7]
[426862950,1782965453000,-1492.586653,0.00032877,7]
[426862949,1782965453000,-1492.586653,0.00032877,7]
[426862953,1782965453000,-1492.586653,0.00032877,7]
[426862952,1782965453000,-1492.586653,0.00032877,7]
[426862954,1782965453000,-151.0,0.00032877,7]
[426862955,1782965453000,-151.0,0.00032877,7]
[426862958,1782965453000,-305.667753,0.00032877,7]
[426862959,1782965453000,-171.293999,0.00032877,7]
[426862962,1782965453000,-305.667753,0.00032877,7]
[426862960,1782965453000,-305.667753,0.00032877,7]
[426862956,1782965453000,-305.667753,0.00032877,7]
[426862957,1782965453000,-151.0,0.00032877,7]
[426862961,1782965453000,-305.667753,0.00032877,7]
[426862965,1782965453000,-305.667753,0.00032877,7]
[426862963,1782965453000,-305.667753,0.00032877,7]
[426862964,1782965453000,-305.667753,0.00032877,7]
[426862925,1782965453000,-174.463507,0.00032877,7]
[426862948,1782965453000,-1492.586653,0.00032877,7]
[426862946,1782965453000,-153.789703,0.00032877,7]
[426862966,1782965453000,-183.8216422,0.00032877,7]
[426862947,1782965453000,-153.789703,0.00032877,7]
[426862933,1782965453000,-153.789703,0.00032877,7]
[426862951,1782965453000,-1492.586653,0.00032877,7]
[426862928,1782965453000,-3181.687016,0.00032877,7]
[426862932,1782965453000,-3181.687016,0.00032877,7]
[426862929,1782965453000,-197.03116,0.00032877,7]
[426862927,1782965453000,-197.03116,0.00032877,7]
[426862934,1782965453000,-197.03116,0.00032877,7]
[426862935,1782965453000,-153.789703,0.00032877,7]
[426862936,1782965453000,-3181.687016,0.00032877,7]
[426862937,1782965453000,-3181.687016,0.00032877,7]
[426862942,1782965453000,-153.789703,0.00032877,7]
[426862944,1782965453000,-1492.586653,0.00032877,7]
[426862939,1782965453000,-153.789703,0.00032877,7]
[426862943,1782965453000,-153.789703,0.00032877,7]
[426862941,1782965453000,-3181.687016,0.00032877,7]
[426862945,1782965453000,-1492.586653,0.00032877,7]
[426862938,1782965453000,-153.789703,0.00032877,7]
[426862940,1782965453000,-3181.687016,0.00032877,7]
[426862983,1782965454000,-541.70146018,0.00032877,7]
[426862984,1782965454000,-1075.0,0.00032877,7]
[426862987,1782965454000,-2717.577293,0.00032877,7]
[426862998,1782965454000,-1344.206725,0.00032877,7]
[426862991,1782965454000,-151.0,0.00032877,7]
[426862992,1782965454000,-151.0,0.00032877,7]
[426862999,1782965454000,-151.0,0.00032877,7]
[426862989,1782965454000,-258.352093,0.00032877,7]
[426862994,1782965454000,-151.0,0.00032877,7]
[426862993,1782965454000,-151.0,0.00032877,7]
[426862997,1782965454000,-2717.577293,0.00032877,7]
[426862986,1782965454000,-258.352093,0.00032877,7]
[426862995,1782965454000,-151.0,0.00032877,7]
[426862990,1782965454000,-1344.206725,0.00032877,7]
[426862985,1782965454000,-1100.87583282,0.00032877,7]
[426862974,1782965454000,-151.0,0.00032877,7]
[426862980,1782965454000,-151.0,0.00032877,7]
[426862996,1782965454000,-151.0,0.00032877,7]
[426862967,1782965454000,-74.5304508,0.00032877,7]
[426862968,1782965454000,-258.352093,0.00032877,7]
[426862970,1782965454000,-258.352093,0.00032877,7]
[426862976,1782965454000,-1344.206725,0.00032877,7]
[426862972,1782965454000,-151.0,0.00032877,7]
[426862982,1782965454000,-151.0,0.00032877,7]
[426862977,1782965454000,-258.352093,0.00032877,7]
[426862969,1782965454000,-258.352093,0.00032877,7]
[426862978,1782965454000,-1344.206725,0.00032877,7]
[426862973,1782965454000,-151.0,0.00032877,7]
[426862975,1782965454000,-258.352093,0.00032877,7]
[426862979,1782965454000,-151.0,0.00032877,7]
[426862981,1782965454000,-151.0,0.00032877,7]
[426862971,1782965454000,-151.0,0.00032877,7]
[426863001,1782965454000,-1344.206725,0.00032877,7]
[426862988,1782965454000,-1344.206725,0.00032877,7]
[426863000,1782965454000,-2717.577293,0.00032877,7]
[426863014,1782965454000,-151.0,0.00032877,7]
[426863020,1782965454000,-151.0,0.00032877,7]
[426863016,1782965454000,-1035.101498,0.00032877,7]
[426863025,1782965454000,-1035.101498,0.00032877,7]
[426863026,1782965454000,-308.361404,0.00032877,7]
[426863029,1782965454000,-324.346105,0.00032877,7]
[426863018,1782965454000,-2717.577293,0.00032877,7]
[426863035,1782965454000,-127.92458744,0.00032877,7]
[426863031,1782965454000,-287.26464,0.00032877,7]
[426863034,1782965454000,-308.361404,0.00032877,7]
[426863032,1782965454000,-1035.101498,0.00032877,7]
[426863030,1782965454000,-1035.101498,0.00032877,7]
[426863033,1782965454000,-287.26464,0.00032877,7]
[426863011,1782965454000,-1344.206725,0.00032877,7]
[426863027,1782965454000,-324.346105,0.00032877,7]
[426863017,1782965454000,-1035.101498,0.00032877,7]
[426863028,1782965454000,-308.361404,0.00032877,7]
[426863019,1782965454000,-2717.577293,0.00032877,7]
[426863002,1782965454000,-151.0,0.00032877,7]
[426863005,1782965454000,-192.874724,0.00032877,7]
[426863003,1782965454000,-151.0,0.00032877,7]
[426863004,1782965454000,-151.0,0.00032877,7]
[426863007,1782965454000,-2717.577293,0.00032877,7]
[426863009,1782965454000,-151.0,0.00032877,7]
[426863006,1782965454000,-151.0,0.00032877,7]
[426863008,1782965454000,-1344.206725,0.00032877,7]
[426863010,1782965454000,-2717.577293,0.00032877,7]
[426863013,1782965454000,-238.919506,0.00032877,7]
[426863023,1782965454000,-1035.101498,0.00032877,7]
[426863024,1782965454000,-1035.101498,0.00032877,7]
[426863012,1782965454000,-151.0,0.00032877,7]
[426863015,1782965454000,-151.0,0.00032877,7]
[426863021,1782965454000,-227.217958,0.00032877,7]
[426863022,1782965454000,-1035.101498,0.00032877,7]
[426863036,1782965614000,151.0,0.00018,2]
[426863038,1782965689000,350.0,0.00018,2]
[426863039,1782965755000,503.0,0.00018,2]
[426863040,1782965755000,503.0,0.00019676,3]
[426863041,1782966113000,503.0,0.00018,2]
[426863042,1782966114000,503.0,0.00019771,3]
[426863043,1782966141000,193.04572401,0.00019404,2]
[426863044,1782966151000,300.0,0.0002,2]
[426863045,1782966232000,151.57,0.00018,2]
[426863046,1782966238000,350.0,0.00019132,2]
[426863049,1782966475000,503.0,0.00019879,3]
[426863048,1782966475000,503.0,0.00018,2]
[426863056,1782966632000,-150.0,0.00021918,2]
[426863055,1782966632000,-503.0,0.00021758,5]
[426863058,1782966632000,-135.46470103,0.00022072,4]
[426863057,1782966632000,-214.53529897,0.00022072,4]
[426863059,1782966632000,-184.53529897,0.00022845,2]
[426863060,1782966632000,-120.45470103,0.00022845,2]
[426863063,1782966632000,-150.0,0.00023014,2]
[426863062,1782966632000,-522.18030566,0.00022951,2]
[426863064,1782966632000,-503.0,0.00023636,7]
[426863068,1782966632000,-952.55366965,0.00023999,2]
[426863066,1782966632000,-300.0,0.00023999,2]
[426863065,1782966632000,-262.43924833,0.00023703,2]
[426863067,1782966632000,-299.99,0.00023999,7]
[426863061,1782966632000,-189.38207533,0.00022926,2]
[426863086,1782966638000,-2826.33,0.00023999,2]
[426863087,1782966638000,-515.82877675,0.00023999,2]
[426863088,1782966638000,-4054.70215402,0.00023999,2]
[426863091,1782966638000,-156.0,0.00024,2]
[426863093,1782966638000,-203.0,0.00024,2]
[426863089,1782966638000,-1650.57539958,0.00023999,2]
[426863094,1782966638000,-154.0,0.00024,2]
[426863092,1782966638000,-156.0,0.00024,2]
[426863095,1782966638000,-9999.99,0.00024,2]
[426863097,1782966638000,-2605.26,0.00024,2]
[426863099,1782966638000,-150.0,0.00024164,2]
[426863090,1782966638000,-1582.03,0.00023999,2]
[426863102,1782966638000,-444.665,0.00024365,18]
[426863120,1782966639000,-500.0,0.00026078,2]
[426863122,1782966639000,-500.0,0.00026078,2]
[426863121,1782966639000,-500.0,0.00026078,2]
[426863119,1782966639000,-154.0,0.00026,2]
[426863124,1782966639000,-564.37551843,0.00026078,2]
[426863125,1782966639000,-310.68727393,0.0002608,2]
[426863127,1782966639000,-410.68017359,0.0002608,2]
[426863126,1782966639000,-395.79961766,0.0002608,2]
[426863131,1782966639000,-404.52776464,0.0002608,2]
[426863118,1782966639000,-203.0,0.00026,2]
[426863123,1782966639000,-500.0,0.00026078,2]
[426863117,1782966639000,-164.0,0.00026,2]
[426863107,1782966639000,-203.0,0.00025,2]
[426863114,1782966639000,-198.755584,0.00025524,2]
[426863115,1782966639000,-194.66313426,0.000259,2]
[426863112,1782966639000,-186.90167436,0.00025524,2]
[426863113,1782966639000,-158.45796564,0.00025524,2]
[426863108,1782966639000,-154.0,0.00025,2]
[426863109,1782966639000,-150.0,0.00025373,2]
[426863132,1782966639000,-65.31270389,0.0002608,2]
[426863111,1782966639000,-181.81281957,0.00025524,2]
[426863106,1782966639000,-156.0,0.00025,2]
[426863104,1782966639000,-350.0,0.00024652,5]
[426863110,1782966639000,-503.0,0.00025515,9]
[426863105,1782966639000,-156.0,0.00025,2]
[426863116,1782966639000,-156.0,0.00026,2]
[426863128,1782966639000,-243.61278203,0.0002608,2]
[426863153,1782966639000,-215.92,0.00027694,120]
[426863130,1782966639000,-440.91468783,0.0002608,2]
[426863158,1782966639000,-154.0,0.00028,2]
[426863159,1782966639000,-2481.11709314,0.00028414,10]
[426863157,1782966639000,-203.0,0.00028,2]
[426863156,1782966639000,-150.0,0.00027973,2]
[426863154,1782966639000,-5000.0,0.00027701,2]
[426863155,1782966639000,-3505.77,0.00027773,2]
[426863149,1782966639000,-300.0,0.00027397,2]
[426863148,1782966639000,-1500.0,0.00027397,2]
[426863151,1782966639000,-500.0,0.000275,7]
[426863150,1782966639000,-159.16621923,0.00027397,2]
[426863152,1782966639000,-1910.62,0.00027595,2]
[426863147,1782966639000,-503.0,0.00027394,10]
[426863146,1782966639000,-200.0,0.00027167,2]
[426863129,1782966639000,-373.80334873,0.0002608,2]
[426863143,1782966639000,-164.0,0.00027,2]
[426863133,1782966639000,-332.19846412,0.0002608,2]
[426863134,1782966639000,-363.62563915,0.0002608,2]
[426863136,1782966639000,-205.42332789,0.00026081,2]
[426863135,1782966639000,-431.23474493,0.00026081,2]
[426863137,1782966639000,-187.58484518,0.00026081,2]
[426863145,1782966639000,-154.0,0.00027,2]
[426863139,1782966639000,-1852.42,0.00026809,2]
[426863140,1782966639000,-350.0,0.00026916,8]
[426863141,1782966639000,-517.16,0.00026972,2]
[426863142,1782966639000,-1000.0,0.00026984,120]
[426863144,1782966639000,-203.0,0.00027,2]
[426863138,1782966639000,-150.0,0.00026641,2]
[426863182,1782966642000,-150.0,0.00029372,2]
[426863187,1782966642000,-1134.65,0.000297,2]
[426863186,1782966642000,-1000.0,0.000297,2]
[426863197,1782966642000,-10000.0,0.0003,2]
[426863189,1782966642000,-15613.79,0.0002989,10]
[426863188,1782966642000,-5615.4629,0.00029888,2]
[426863190,1782966642000,-4688.83712972,0.000299,2]
[426863191,1782966642000,-9153.0593407,0.000299,2]
[426863196,1782966642000,-10730.86,0.0003,2]
[426863192,1782966642000,-160.0,0.00029988,10]
[426863195,1782966642000,-150.0,0.0003,5]
[426863194,1782966642000,-151.0,0.0003,5]
[426863198,1782966642000,-12500.0,0.0003,2]
[426863184,1782966642000,-1000.0,0.000297,2]
[426863200,1782966642000,-20433.37,0.0003,2]
[426863199,1782966642000,-928.67,0.0003,2]
[426863201,1782966642000,-1201.66924717,0.0003,60]
[426863193,1782966642000,-3000.0,0.00029999,30]
[426863185,1782966642000,-1000.0,0.000297,2]
[426863176,1782966642000,-217.0,0.00029,2]
[426863181,1782966642000,-213.23,0.00029315,2]
[426863162,1782966642000,-16255.43290686,0.00028414,10]
[426863163,1782966642000,-497.79499968,0.00028423,16]
[426863165,1782966642000,-201.74898364,0.00028424,5]
[426863164,1782966642000,-151.0,0.00028424,5]
[426863166,1782966642000,-300.26704643,0.00028424,5]